bitfinex-derivatives/quotes_BTCF0:USTF0_20250905
["timestamp","ask_amount","ask_price","bid_price","bid_amount"]
[1757046080912,0.24067025,111270.0,111260.0,0.34628]
[1757046081209,0.24067025,111270.0,111260.0,0.34728]
[1757046081210,0.23967025,111270.0,111260.0,0.34728]
[1757046081409,0.0033,111270.0,111260.0,0.34728]
[1757046081607,0.0035,111280.0,111270.0,0.01362]
[1757046081910,0.23967025,111280.0,111270.0,0.2365]
[1757046082710,0.24067025,111280.0,111270.0,0.2365]
[1757046083413,0.27016372,111280.0,111270.0,0.2365]
[1757046084812,0.27216372,111280.0,111270.0,0.2365]
[1757046085313,0.27116372,111280.0,111270.0,0.2365]
[1757046085501,0.27316372,111280.0,111270.0,0.2365]
[1757046091919,0.0073,111280.0,111270.0,0.2365]
[1757046092119,0.27316372,111280.0,111270.0,0.2365]
[1757046092624,0.53902744,111280.0,111270.0,0.0365]
[1757046093821,0.53802744,111280.0,111270.0,0.0365]
[1757046094621,0.53902744,111280.0,111270.0,0.0365]
[1757046100124,0.0073,111280.0,111270.0,0.0365]
[1757046100328,0.27316372,111280.0,111270.0,0.0365]
[1757046102029,0.53902744,111280.0,111270.0,0.0365]
[1757046125652,0.27316372,111280.0,111270.0,0.3565]
[1757046126452,0.27316372,111280.0,111270.0,0.0365]
[1757046127355,0.27316372,111280.0,111270.0,0.3465]
[1757046128055,0.27316372,111280.0,111270.0,0.0365]
[1757046143461,0.24363425,111280.0,111270.0,0.0365]
[1757046153068,0.24363425,111280.0,111270.0,0.4165]
[1757046153266,0.24363425,111280.0,111270.0,0.3565]
[1757046157269,0.004,111280.0,111270.0,0.6963651]
[1757046157663,0.001,111280.0,111270.0,0.71471569]
[1757046158768,0.001,111280.0,111270.0,0.71571569]
[1757046159666,0.23653425,111290.0,111270.0,0.71571569]
[1757046159871,0.23973425,111290.0,111280.0,0.03679]
[1757046160071,0.23963425,111290.0,111280.0,0.38679]
[1757046162575,0.24063425,111290.0,111280.0,0.38679]
[1757046165477,0.0043,111290.0,111280.0,0.38679]
[1757046165777,0.24063425,111290.0,111280.0,0.38679]
[1757046166377,0.0043,111290.0,111280.0,0.38679]
[1757046167679,0.001,111290.0,111280.0,0.38679]
[1757046169583,0.0043,111290.0,111280.0,0.38679]
[1757046171076,0.001,111290.0,111280.0,0.38679]
[1757046171572,0.001,111290.0,111280.0,1.77806115]
[1757046172283,0.001,111290.0,111280.0,1.5417269]
[1757046172672,0.0002,111300.0,111280.0,1.5417269]
[1757046172871,0.0034,111300.0,111290.0,0.03448]
[1757046173075,0.0033,111300.0,111290.0,0.38448]
[1757046174283,0.24904974,111310.0,111300.0,0.03448]
[1757046174484,0.24884974,111310.0,111300.0,0.39448]
[1757046175781,0.25284974,111310.0,111300.0,0.39448]
[1757046176183,0.24363425,111310.0,111300.0,0.39448]
[1757046177479,0.0073,111310.0,111300.0,0.39448]
[1757046177679,0.24363425,111310.0,111300.0,0.39448]
[1757046178387,0.24363425,111310.0,111300.0,0.03448]
[1757046178687,0.24363425,111310.0,111300.0,0.40448]
[1757046178881,0.24033425,111310.0,111300.0,0.40448]
[1757046179788,0.004,111310.0,111300.0,0.40448]
[1757046179985,0.24033425,111310.0,111300.0,0.40448]
[1757046180185,0.004,111310.0,111300.0,0.4943207]
[1757046180383,0.004,111310.0,111300.0,0.40448]
[1757046180587,0.004,111310.0,111300.0,1.46944]
[1757046181288,0.004,111310.0,111300.0,1.21944]
[1757046182983,0.004,111310.0,111300.0,1.5592807]
[1757046184892,0.004,111310.0,111300.0,1.6440807]
[1757046189388,0.004,111310.0,111300.0,1.55412]
[1757046202897,0.004,111310.0,111300.0,0.73928]
[1757046203301,0.004,111310.0,111300.0,1.554]
[1757046204806,0.004,111310.0,111300.0,0.73928]
[1757046205099,0.002,111310.0,111300.0,1.55396]
[1757046205300,0.001,111310.0,111300.0,1.55396]
[1757046205502,0.26664493,111310.0,111300.0,1.81960493]
[1757046205900,0.26664493,111310.0,111300.0,1.90944573]
[1757046206603,0.001,111310.0,111300.0,1.90944573]
[1757046209604,0.001,111310.0,111300.0,1.65944573]
[1757046209802,0.26584493,111320.0,111300.0,1.65944573]
[1757046210003,0.26574493,111320.0,111310.0,0.30060493]
[1757046210203,0.26564493,111320.0,111310.0,0.62060493]
[1757046210905,0.26664493,111320.0,111310.0,0.62060493]
[1757046211705,0.26864493,111320.0,111310.0,0.62060493]
[1757046212704,0.26864493,111320.0,111310.0,0.62981837]
[1757046213598,0.004,111320.0,111310.0,0.62981837]
[1757046213804,0.26964493,111320.0,111310.0,0.62981837]
[1757046215108,0.004,111320.0,111310.0,0.36417344]
[1757046215295,0.26964493,111320.0,111310.0,0.62981837]
[1757046217104,0.004,111320.0,111310.0,0.62981837]
[1757046217303,0.26964493,111320.0,111310.0,0.70248732]
[1757046221109,0.26964493,111320.0,111310.0,0.43684239]
[1757046221309,0.26964493,111320.0,111310.0,0.70248732]
[1757046221506,0.26964493,111320.0,111310.0,1.18799388]
[1757046221710,0.26964493,111320.0,111310.0,1.56799388]
[1757046222114,0.26964493,111320.0,111310.0,1.30234895]
[1757046222812,0.26964493,111320.0,111310.0,1.56799388]
[1757046223107,0.26964493,111320.0,111310.0,0.75327388]
[1757046223307,0.26964493,111320.0,111310.0,0.48762895]
[1757046223308,0.27454493,111320.0,111310.0,0.48762895]
[1757046223514,0.27454493,111320.0,111310.0,0.10762895]
[1757046223717,0.27454493,111320.0,111310.0,0.92262895]
[1757046223912,0.27454493,111320.0,111310.0,1.25262895]
[1757046224105,0.27454493,111320.0,111310.0,0.92262895]
[1757046224416,0.27454493,111320.0,111310.0,1.26262895]
[1757046224813,0.27454493,111320.0,111310.0,0.92262895]
[1757046225514,0.27454493,111320.0,111310.0,1.29262895]
[1757046225712,0.27454493,111320.0,111310.0,0.92262895]
[1757046226109,0.0089,111320.0,111310.0,1.30262895]
[1757046226310,0.27454493,111320.0,111310.0,1.30262895]
[1757046226510,0.26964493,111320.0,111310.0,1.28084895]
[1757046227116,0.27454493,111320.0,111310.0,0.92387895]
[1757046227320,0.27454493,111320.0,111310.0,1.26387895]
[1757046229910,0.26964493,111320.0,111310.0,1.22766895]
[1757046230116,0.26964493,111320.0,111310.0,1.24084895]
[1757046231317,0.27454493,111320.0,111310.0,0.92387895]
[1757046231618,0.27454493,111320.0,111310.0,1.23387895]
[1757046232718,0.52454493,111320.0,111310.0,0.10887895]
[1757046232915,0.79018986,111320.0,111300.0,0.09808]
[1757046233106,0.53618986,111310.0,111300.0,0.30101]
[1757046233312,0.53618986,111310.0,111300.0,0.27798]
[1757046233508,0.53924986,111310.0,111300.0,0.2648]
[1757046234113,0.78924986,111310.0,111300.0,0.2648]
[1757046235018,0.78924986,111310.0,111300.0,0.18]
[1757046235321,0.78924986,111310.0,111290.0,0.01328]
[1757046235519,0.53128986,111300.0,111290.0,0.12621]
[1757046235719,0.53618986,111300.0,111290.0,0.12621]
[1757046236516,0.78618986,111300.0,111290.0,0.12621]
[1757046237927,0.78618986,111300.0,111290.0,0.12821]
[1757046241325,0.53618986,111300.0,111290.0,0.12821]
[1757046245032,0.0049,111300.0,111290.0,0.40821]
[1757046245532,0.27054493,111300.0,111290.0,0.40821]
[1757046246328,0.27054493,111300.0,111290.0,0.30385493]
[1757046246633,0.27074493,111310.0,111300.0,0.03621]
[1757046246832,0.27054493,111310.0,111300.0,0.41621]
[1757046248233,0.27154493,111310.0,111300.0,0.41621]
[1757046248734,0.27154493,111310.0,111300.0,0.03621]
[1757046248933,0.27254493,111310.0,111300.0,0.37621]
[1757046249428,0.27254493,111310.0,111300.0,0.03621]
[1757046249635,0.27254493,111310.0,111300.0,0.30185493]
[1757046249825,0.27254493,111310.0,111300.0,0.68185493]
[1757046250023,0.27254493,111310.0,111300.0,0.03621]
[1757046250422,0.27254493,111310.0,111300.0,0.01318]
[1757046250731,0.27254493,111310.0,111290.0,0.01328]
[1757046251035,0.27054493,111300.0,111290.0,0.14621]
[1757046251933,0.27054493,111300.0,111290.0,0.14721]
[1757046253333,0.27054493,111300.0,111290.0,0.14621]
[1757046253531,0.27054493,111300.0,111290.0,0.14721]
[1757046265242,0.27054493,111300.0,111290.0,0.40721]
[1757046265541,0.24111816,111300.0,111290.0,0.40721]
[1757046310685,0.24111816,111300.0,111290.0,0.14721]
[1757046310886,0.0049,111300.0,111290.0,0.15721]
[1757046311090,0.24111816,111300.0,111290.0,0.34721]
[1757046313891,0.24111816,111300.0,111290.0,0.15721]
[1757046314282,0.24111816,111300.0,111290.0,0.36721]
[1757046316794,0.0049,111300.0,111290.0,0.36721]
[1757046316984,0.24111816,111300.0,111290.0,0.36721]
[1757046323889,0.23641816,111310.0,111300.0,0.01374]
[1757046324094,0.24111816,111310.0,111300.0,0.40608]
[1757046324491,0.24131816,111320.0,111310.0,0.03608]
[1757046324797,0.0051,111330.0,111320.0,0.03608]
[1757046324991,0.0049,111330.0,111320.0,0.37608]
[1757046325495,0.27046584,111330.0,111320.0,0.37608]
[1757046326292,0.27046584,111330.0,111320.0,1.19188]
[1757046326494,0.0051,111340.0,111330.0,0.03608]
[1757046326698,0.27046584,111340.0,111330.0,0.39608]
[1757046327998,0.27346584,111340.0,111330.0,0.39608]
[1757046328498,0.27646584,111340.0,111330.0,0.39608]
[1757046330596,0.27546584,111340.0,111330.0,0.39608]
[1757046331497,0.27446584,111340.0,111330.0,0.39608]
[1757046332904,0.27446584,111340.0,111330.0,0.35608]
[1757046333092,0.27446584,111340.0,111330.0,0.03608]
[1757046333600,0.27446584,111340.0,111330.0,0.34608]
[1757046335596,0.27446584,111340.0,111330.0,0.03608]
[1757046335902,0.27446584,111340.0,111330.0,0.41608]
[1757046336696,0.27446584,111340.0,111330.0,0.03608]
[1757046337203,0.27446584,111340.0,111330.0,0.34608]
[1757046340508,0.27446584,111340.0,111330.0,0.40608]
[1757046342006,0.27446584,111340.0,111330.0,0.03608]
[1757046342408,0.27446584,111340.0,111330.0,0.36608]
[1757046344108,0.27446584,111340.0,111330.0,0.03608]
[1757046344611,0.27446584,111340.0,111330.0,0.34608]
[1757046344810,0.27446584,111340.0,111330.0,0.03608]
[1757046345008,0.27446584,111340.0,111330.0,0.40608]
[1757046345810,0.27446584,111340.0,111330.0,0.03608]
[1757046346310,0.27446584,111340.0,111330.0,0.36608]
[1757046346510,0.27446584,111340.0,111330.0,0.03608]
[1757046347110,0.27446584,111340.0,111330.0,0.39608]
[1757046349614,0.27446584,111340.0,111330.0,0.03608]
[1757046349813,0.27446584,111340.0,111330.0,0.36608]
[1757046353420,0.27446584,111340.0,111330.0,0.03608]
[1757046353620,0.27446584,111340.0,111330.0,0.36608]
[1757046353920,0.27446584,111340.0,111330.0,0.03608]
[1757046354313,0.27446584,111340.0,111330.0,0.37608]
[1757046365122,0.27446584,111340.0,111330.0,0.03608]
[1757046372328,0.27446584,111340.0,111330.0,0.40608]
[1757046373229,0.0089,111340.0,111330.0,0.40608]
[1757046373433,0.27446584,111340.0,111330.0,0.40608]
[1757046375931,0.0089,111340.0,111330.0,0.40608]
[1757046376128,0.27446584,111340.0,111330.0,0.40608]
[1757046376530,0.27246584,111340.0,111330.0,0.40608]
[1757046377533,0.27246584,111340.0,111330.0,0.03608]
[1757046377829,0.27246584,111340.0,111330.0,0.38608]
[1757046379027,0.27246584,111340.0,111330.0,0.03608]
[1757046379229,0.27246584,111340.0,111330.0,0.05608]
[1757046379733,0.27246584,111340.0,111330.0,0.41608]
[1757046380229,0.27246584,111340.0,111330.0,0.34608]
[1757046381839,0.27246584,111340.0,111330.0,0.36608]
[1757046382638,0.0069,111340.0,111330.0,0.72146224]
[1757046382935,0.26756584,111340.0,111330.0,0.72146224]
[1757046383136,0.002,111340.0,111330.0,0.72146224]
[1757046383336,0.002,111340.0,111330.0,0.97146224]
[1757046383934,0.001,111340.0,111330.0,0.97146224]
[1757046384841,0.001,111340.0,111330.0,0.7058964]
[1757046385142,0.001,111340.0,111330.0,0.97146224]
[1757046385444,0.001,111340.0,111330.0,0.7058964]
[1757046385942,0.0002,111350.0,111330.0,0.7058964]
[1757046386138,0.002,111340.0,111330.0,0.4558964]
[1757046386345,0.002,111340.0,111330.0,1.2710564]
[1757046387037,0.236187,111350.0,111330.0,1.2710564]
[1757046387240,0.242987,111350.0,111340.0,0.03532]
[1757046387442,0.242887,111350.0,111340.0,0.39532]
[1757046387740,0.240887,111350.0,111340.0,0.39532]
[1757046389543,0.241887,111350.0,111340.0,0.39532]
[1757046389744,0.244887,111350.0,111340.0,0.39532]
[1757046390540,0.244887,111350.0,111340.0,0.03532]
[1757046391346,0.244887,111350.0,111340.0,0.41532]
[1757046391942,0.0089,111350.0,111340.0,0.41532]
[1757046392147,0.244887,111350.0,111340.0,0.41532]
[1757046395051,0.0089,111350.0,111340.0,0.41532]
[1757046395244,0.244887,111350.0,111340.0,0.41532]
[1757046399748,0.0089,111350.0,111340.0,0.41532]
[1757046399940,0.244887,111350.0,111340.0,0.41532]
[1757046400142,0.004,111350.0,111340.0,0.5051284]
[1757046400343,0.004,111350.0,111340.0,0.7551284]
[1757046401545,0.003,111350.0,111340.0,0.7551284]
[1757046402653,0.002,111350.0,111340.0,0.7551284]
[1757046412158,0.002,111350.0,111340.0,0.5051284]
[1757046413457,0.002,111350.0,111340.0,1.3199684]
[1757046416053,0.002,111350.0,111340.0,0.41532]
[1757046416258,0.002,111350.0,111340.0,1.19]
[1757046421356,0.002,111350.0,111340.0,0.03532]
[1757046421560,0.002,111350.0,111340.0,1.19008]
[1757046427567,0.002,111350.0,111340.0,0.03532]
[1757046427767,0.0069,111350.0,111340.0,0.36532]
[1757046428069,0.0069,111350.0,111340.0,1.17992]
[1757046429771,0.0069,111350.0,111340.0,0.36532]
[1757046429980,0.0069,111350.0,111340.0,1.22992]
[1757046431085,0.0069,111350.0,111340.0,1.34244983]
[1757046432281,0.0069,111350.0,111340.0,1.22992]
[1757046433482,0.002,111350.0,111340.0,1.22992]
[1757046444290,0.002,111350.0,111340.0,1.34244983]
[1757046445490,0.26745745,111350.0,111340.0,1.60790728]
[1757046446392,0.26745745,111350.0,111340.0,1.49537745]
[1757046449986,0.27235745,111350.0,111340.0,0.41532]
[1757046450290,0.52235745,111350.0,111340.0,1.22988]
[1757046454096,0.52235745,111350.0,111340.0,1.49533745]
[1757046457297,0.52235745,111350.0,111340.0,1.22988]
[1757046458501,0.52235745,111350.0,111340.0,1.34240983]
[1757046460204,0.52235745,111350.0,111340.0,1.22988]
[1757046460900,0.52235745,111350.0,111340.0,1.34240983]
[1757046461798,0.27235745,111350.0,111340.0,0.52784983]
[1757046461997,0.52235745,111350.0,111340.0,0.14784983]
[1757046462198,0.52235745,111350.0,111340.0,0.01]
[1757046462397,0.7878149,111350.0,111340.0,0.01]
[1757046462596,0.7878149,111350.0,111330.0,0.01384]
[1757046462802,0.5358149,111340.0,111330.0,0.37374]
[1757046463402,0.5358149,111340.0,111330.0,0.14374]
[1757046463903,0.5358149,111340.0,111330.0,0.14474]
[1757046464105,0.7858149,111340.0,111330.0,0.131]
[1757046465203,0.7858149,111340.0,111330.0,0.13]
[1757046465404,0.7858149,111340.0,111330.0,0.131]
[1757046468499,0.7888149,111340.0,111330.0,0.131]
[1757046468804,0.7898149,111340.0,111330.0,0.13]
[1757046475200,0.7898149,111340.0,111320.0,0.01384]
[1757046475503,0.5358149,111330.0,111320.0,0.27374]
[1757046476006,0.5358149,111330.0,111320.0,0.29487]
[1757046477608,0.5378149,111330.0,111320.0,0.29487]
[1757046478103,0.5378149,111330.0,111320.0,0.27374]
[1757046478310,1.3524549,111330.0,111320.0,0.26]
[1757046478508,1.6024549,111330.0,111310.0,0.01371]
[1757046478708,0.27035745,111320.0,111310.0,0.11361]
[1757046478908,0.27035745,111320.0,111310.0,0.13474]
[1757046479708,0.27035745,111320.0,111310.0,0.13574]
[1757046479910,0.27948518,111320.0,111310.0,0.13574]
[1757046480508,0.27948518,111320.0,111310.0,0.11461]
[1757046480713,0.27948518,111320.0,111310.0,0.01461]
[1757046480918,0.27948518,111320.0,111310.0,0.001]
[1757046484711,1.09428518,111320.0,111310.0,0.035]
[1757046491218,0.82878773,111320.0,111310.0,0.035]
[1757046491524,1.09424518,111320.0,111310.0,0.035]
[1757046502731,1.09428518,111320.0,111310.0,0.035]
[1757046503331,1.09428518,111320.0,111310.0,0.355]
[1757046503833,1.09428518,111320.0,111310.0,0.035]
[1757046504022,1.09428518,111320.0,111310.0,0.385]
[1757046505529,1.0649913,111320.0,111310.0,0.385]
[1757046507232,0.2501913,111320.0,111310.0,0.385]
[1757046507431,0.8252713,111320.0,111310.0,0.385]
[1757046507734,1.0650713,111320.0,111310.0,0.385]
[1757046509233,1.0650713,111320.0,111310.0,0.035]
[1757046509431,1.0650713,111320.0,111310.0,0.395]
[1757046516737,1.0650713,111320.0,111310.0,0.035]
[1757046518436,1.0650713,111320.0,111310.0,0.355]
[1757046518834,1.0650713,111320.0,111310.0,0.035]
[1757046519140,1.32517934,111320.0,111310.0,0.01387]
[1757046519934,1.32517934,111320.0,111310.0,0.01287]
[1757046521842,1.32717934,111320.0,111310.0,0.01287]
[1757046522940,1.32717934,111320.0,111310.0,0.03515]
[1757046524236,0.51229934,111320.0,111310.0,0.03515]
[1757046524443,1.25325934,111320.0,111310.0,0.03515]
[1757046528844,1.22931487,111320.0,111310.0,0.03515]
[1757046566572,1.22441487,111320.0,111300.0,0.0001]
[1757046566772,0.23616357,111310.0,111300.0,0.06]
[1757046567476,0.26571023,111310.0,111300.0,0.06]
[1757046567972,0.26571023,111310.0,111300.0,0.061]
[1757046571578,0.00932773,111320.0,111300.0,0.061]
[1757046571778,0.00932773,111320.0,111310.0,0.03685]
[1757046571779,0.01412773,111320.0,111310.0,0.03685]
[1757046571979,0.27973796,111320.0,111310.0,0.38685]
[1757046572984,0.27973796,111320.0,111310.0,0.03685]
[1757046573376,0.28173796,111320.0,111310.0,0.03685]
[1757046581683,0.01602773,111320.0,111310.0,0.03685]
[1757046581884,0.28173796,111320.0,111310.0,0.03685]
[1757046587589,0.27261023,111320.0,111310.0,0.03685]
[1757046587795,0.27261023,111320.0,111310.0,0.59685]
[1757046591897,0.27261023,111320.0,111310.0,0.60567811]
[1757046593997,0.27261023,111320.0,111310.0,0.59685]
[1757046596496,0.27261023,111320.0,111310.0,0.60601221]
[1757046596696,0.27261023,111320.0,111310.0,0.59685]
[1757046601201,0.27261023,111320.0,111310.0,0.34685]
[1757046601501,0.002,111320.0,111310.0,0.95239273]
[1757046601894,0.26771023,111320.0,111310.0,0.95239273]
[1757046602501,0.26771023,111320.0,111310.0,1.76707273]
[1757046606304,0.002,111320.0,111310.0,1.76707273]
[1757046612004,0.002,111320.0,111310.0,1.76703273]
[1757046616409,0.002,111320.0,111310.0,1.87956256]
[1757046617209,0.002,111320.0,111310.0,1.62956256]
[1757046617417,0.0002,111330.0,111320.0,0.1257043]
[1757046617710,0.26571023,111360.0,111330.0,0.1256962]
[1757046617711,0.0002,111340.0,111330.0,0.1256962]
[1757046617901,0.26591023,111350.0,111340.0,0.03588]
[1757046618098,0.27381023,111350.0,111340.0,0.37588]
[1757046620411,0.27481023,111350.0,111340.0,0.37588]
[1757046625415,0.0091,111350.0,111340.0,0.37588]
[1757046625617,0.27481023,111350.0,111340.0,0.37588]
[1757046627418,0.24509181,111350.0,111340.0,0.37588]
[1757046628216,0.24509181,111350.0,111340.0,1.19036]
[1757046628717,0.23699181,111350.0,111340.0,1.19036]
[1757046629111,0.001,111350.0,111340.0,1.19922485]
[1757046631618,0.001,111350.0,111340.0,1.28903295]
[1757046634220,0.001,111350.0,111340.0,1.30919295]
[1757046634615,0.001,111350.0,111340.0,1.38051332]
[1757046635711,0.001,111350.0,111340.0,1.28066522]
[1757046635911,0.24509181,111350.0,111340.0,0.92172037]
[1757046636110,0.24509181,111350.0,111340.0,0.10720037]
[1757046636307,0.24509181,111350.0,111340.0,1.27188037]
[1757046637617,0.24509181,111350.0,111340.0,0.10720037]
[1757046637809,0.24509181,111350.0,111340.0,1.28216037]
[1757046638318,0.24509181,111350.0,111340.0,0.10720037]
[1757046638518,0.24509181,111350.0,111340.0,1.05180037]
[1757046639513,0.24509181,111350.0,111340.0,0.92204037]
[1757046639714,0.24509181,111350.0,111340.0,1.23204037]
[1757046640519,0.0091,111350.0,111340.0,1.23204037]
[1757046642919,0.24509181,111350.0,111340.0,1.23204037]
[1757046644522,0.0091,111350.0,111340.0,1.23204037]
[1757046644713,0.24509181,111350.0,111340.0,1.23204037]
[1757046645420,0.0091,111350.0,111340.0,1.23204037]
[1757046645715,0.24509181,111350.0,111340.0,1.23204037]
[1757046647718,0.0091,111350.0,111340.0,1.16072]
[1757046647923,0.24509181,111350.0,111340.0,1.16072]
[1757046656336,0.0091,111350.0,111340.0,1.16072]
[1757046656541,0.001,111350.0,111340.0,1.16072]
[1757046656742,0.23699181,111350.0,111340.0,1.16072]
[1757046659642,0.23699181,111350.0,111340.0,1.23196129]
[1757046665643,0.001,111350.0,111340.0,1.23196129]
[1757046665844,0.23699181,111350.0,111340.0,1.23196129]
[1757046666848,0.001,111350.0,111340.0,1.32176829]
[1757046667447,0.001,111350.0,111340.0,1.4347091]
[1757046669838,0.001,111350.0,111340.0,1.3449021]
[1757046681062,0.24509181,111350.0,111340.0,1.23320129]
[1757046682857,0.49509181,111350.0,111340.0,0.41712129]
[1757046683261,0.49509181,111350.0,111340.0,0.23712129]
[1757046683563,0.49509181,111350.0,111340.0,0.44712129]
[1757046687461,0.52463294,111350.0,111340.0,0.44712129]
[1757046687658,0.52463294,111350.0,111340.0,0.37588]
[1757046689663,0.52463294,111350.0,111340.0,0.03588]
[1757046694667,0.2591,111350.0,111340.0,0.03588]
[1757046694863,0.251,111350.0,111340.0,0.35588]
[1757046695061,0.26653294,111350.0,111340.0,0.67141294]
[1757046695664,0.001,111350.0,111340.0,0.91141294]
[1757046695968,0.001,111350.0,111340.0,1.02435375]
[1757046696360,0.26653294,111350.0,111340.0,0.75882081]
[1757046696560,0.26653294,111350.0,111340.0,1.02435375]
[1757046696965,0.26653294,111350.0,111340.0,0.75882081]
[1757046697171,0.26653294,111350.0,111340.0,1.02435375]
[1757046697669,0.001,111350.0,111340.0,1.02435375]
[1757046697874,0.26653294,111350.0,111340.0,1.02435375]
[1757046699169,0.001,111350.0,111340.0,1.09677329]
[1757046699969,0.001,111350.0,111340.0,1.07363938]
[1757046701376,0.001,111350.0,111340.0,0.98383248]
[1757046707883,0.001,111350.0,111340.0,1.07363968]
[1757046708191,0.001,111350.0,111340.0,0.82363968]
[1757046709382,0.26573294,111360.0,111340.0,1.07363968]
[1757046709689,0.26563294,111360.0,111350.0,1.11850294]
[1757046709880,0.26553294,111360.0,111350.0,1.46850294]
[1757046710785,0.26653294,111360.0,111350.0,1.46850294]
[1757046711494,0.26753294,111360.0,111350.0,1.20297]
[1757046712394,0.26653294,111360.0,111350.0,1.20297]
[1757046712586,0.26753294,111360.0,111350.0,1.20297]
[1757046714291,0.54276588,111360.0,111350.0,0.03681]
[1757046722294,0.79276588,111360.0,111350.0,0.03681]
[1757046722501,0.79276588,111360.0,111340.0,0.12571081]
[1757046722694,0.27523294,111350.0,111340.0,0.21553]
[1757046729103,0.26553294,111350.0,111340.0,0.38553]
[1757046729707,0.27523294,111350.0,111340.0,0.38553]
[1757046729910,0.26553294,111350.0,111340.0,0.90106294]
[1757046730305,0.26553294,111350.0,111340.0,0.63553]
[1757046732110,0.27523294,111350.0,111340.0,0.63553]
[1757046733310,0.0097,111350.0,111340.0,0.63553]
[1757046733503,0.26573294,111360.0,111340.0,0.63553]
[1757046733710,0.27533294,111360.0,111350.0,0.03681]
[1757046733910,0.27523294,111360.0,111350.0,0.37681]
[1757046734814,0.54076588,111360.0,111350.0,0.37681]
[1757046736016,0.54176588,111360.0,111350.0,0.37681]
[1757046736714,0.54176588,111360.0,111350.0,0.04681]
[1757046737430,0.79276588,111360.0,111350.0,0.04681]
[1757046744119,0.2617,111360.0,111350.0,0.04681]
[1757046744315,0.79276588,111360.0,111350.0,0.04681]
[1757046746821,0.79276588,111360.0,111350.0,0.03681]
[1757046747028,0.79276588,111360.0,111350.0,0.35681]
[1757046747324,0.79276588,111360.0,111350.0,0.04681]
[1757046747524,0.79276588,111360.0,111350.0,0.03681]
[1757046747725,0.79276588,111360.0,111350.0,0.04681]
[1757046748625,0.79276588,111360.0,111350.0,0.34681]
[1757046748925,0.2617,111360.0,111350.0,0.34681]
[1757046749127,0.79276588,111360.0,111350.0,0.34681]
[1757046749626,0.49767224,111360.0,111350.0,0.34681]
[1757046749822,0.49767224,111360.0,111350.0,0.03681]
[1757046750026,0.49767224,111360.0,111350.0,0.37681]
[1757046750227,0.49767224,111360.0,111350.0,0.06681]
[1757046750528,0.49767224,111360.0,111350.0,0.37681]
[1757046752227,0.49767224,111360.0,111350.0,0.07681]
[1757046752439,0.49767224,111360.0,111350.0,0.41681]
[1757046754428,0.49767224,111360.0,111350.0,0.09681]
[1757046754830,0.49767224,111360.0,111350.0,0.40681]
[1757046755827,0.49767224,111360.0,111350.0,0.37681]
[1757046756030,0.49767224,111360.0,111350.0,0.40681]
[1757046756328,0.49767224,111360.0,111350.0,0.09681]
[1757046756627,0.49767224,111360.0,111350.0,0.40681]
[1757046759437,0.49767224,111360.0,111350.0,0.09681]
[1757046759731,0.49767224,111360.0,111350.0,0.41681]
[1757046761626,0.49767224,111360.0,111350.0,0.38681]
[1757046761818,0.002,111360.0,111350.0,0.6549293]
[1757046763025,0.24507581,111370.0,111350.0,0.6549293]
[1757046763219,0.25467581,111370.0,111360.0,0.03636]
[1757046763432,0.25457581,111370.0,111360.0,0.37636]
[1757046764637,0.24567224,111370.0,111360.0,0.37636]
[1757046764934,0.24567224,111370.0,111360.0,0.03636]
[1757046765133,0.24667224,111370.0,111360.0,0.41636]
[1757046765536,0.25576339,111370.0,111360.0,0.41636]
[1757046765934,0.25676339,111370.0,111360.0,0.41636]
[1757046766134,0.25676339,111370.0,111360.0,0.03636]
[1757046767036,0.02079115,111370.0,111360.0,0.35636]
[1757046767239,0.25676339,111370.0,111360.0,0.35636]
[1757046767535,0.25676339,111370.0,111360.0,0.03636]
[1757046767930,0.25676339,111370.0,111360.0,0.36636]
[1757046768126,0.24767224,111370.0,111360.0,0.03636]
[1757046768327,0.24767224,111370.0,111360.0,0.35636]
[1757046769434,0.24767224,111370.0,111360.0,0.03636]
[1757046770737,0.24767224,111370.0,111360.0,0.35636]
[1757046775045,0.24767224,111370.0,111360.0,0.37636]
[1757046775536,0.24767224,111370.0,111360.0,0.03636]
[1757046775740,0.24767224,111370.0,111360.0,0.34636]
[1757046778937,0.24767224,111370.0,111360.0,0.03636]
[1757046779134,0.24767224,111370.0,111360.0,0.40636]
[1757046779841,0.24767224,111370.0,111360.0,0.03636]
[1757046780936,0.24767224,111370.0,111360.0,0.41636]
[1757046781138,0.24767224,111370.0,111360.0,0.03636]
[1757046782540,0.50373224,111370.0,111350.0,0.01405]
[1757046782743,0.24567224,111360.0,111350.0,0.07577]
[1757046785443,0.24567224,111360.0,111350.0,0.08577]
[1757046787946,0.0097,111360.0,111350.0,0.08577]
[1757046788141,0.24567224,111360.0,111350.0,0.08577]
[1757046790748,0.24567224,111360.0,111350.0,0.34577]
[1757046798364,0.24567224,111360.0,111350.0,0.03577]
[1757046800160,0.0097,111360.0,111350.0,0.34577]
[1757046800349,0.24567224,111360.0,111350.0,0.03577]
[1757046800555,0.24567224,111360.0,111350.0,0.37577]
[1757046803163,0.24567224,111360.0,111350.0,0.03577]
[1757046803961,0.24567224,111360.0,111350.0,0.40577]
[1757046808166,0.24567224,111360.0,111350.0,0.36577]
[1757046808467,0.24567224,111360.0,111350.0,0.03577]
[1757046808665,0.24567224,111360.0,111350.0,0.41577]
[1757046809467,0.27515115,111360.0,111350.0,0.41577]
[1757046809767,0.27515115,111360.0,111350.0,0.03577]
[1757046810064,0.27515115,111360.0,111350.0,0.34577]
[1757046810970,0.0097,111360.0,111350.0,0.34577]
[1757046811265,0.27515115,111360.0,111350.0,0.34577]
[1757046821775,0.0002,111370.0,111360.0,0.01272]
[1757046822073,0.26545115,111370.0,111360.0,0.66981115]
[1757046822275,0.26545115,111370.0,111360.0,1.02782361]
[1757046822481,0.26565115,111380.0,111370.0,0.03436]
[1757046822777,0.26558581,111380.0,111370.0,0.41436]
[1757046823178,0.27528581,111380.0,111370.0,0.41436]
[1757046823678,0.27828581,111380.0,111370.0,0.41436]
[1757046824174,0.00313466,111380.0,111370.0,1.74461115]
[1757046824674,0.27828581,111380.0,111370.0,0.92981115]
[1757046824981,0.01483466,111380.0,111370.0,0.66436]